fUSD/lending_fUSD_20240727
["ID","MTS","AMOUNT","RATE_DAILY","PERIOD"]
[333424130,1722123076624,-500.0,0.00010958,2]
[333424131,1722123076634,-762.97,0.00010958,2]
[333424132,1722123076643,-500.0,0.00010958,2]
[333424133,1722123076652,-762.97,0.00010958,2]
[333424134,1722123076662,-615.67,0.00010958,2]
[333424135,1722123076671,-500.0,0.00010958,2]
[333424136,1722123076680,-762.97,0.00010958,2]
[333424137,1722123076689,-500.0,0.00010958,2]
[333424138,1722123076698,-500.0,0.00010958,2]
[333424139,1722123076707,-500.0,0.00010958,2]
[333424140,1722123076716,-500.0,0.00010958,2]
[333424141,1722123076725,-401.23,0.00010958,2]
[333424142,1722123076735,-500.0,0.00010958,2]
[333424143,1722123076744,-252.44,0.00010958,2]
[333424144,1722123076753,-201.00404269,0.00010958,2]
[333424145,1722123076763,-500.0,0.00010958,2]
[333424146,1722123076772,-500.0,0.00010958,2]
[333424147,1722123076896,-500.0,0.00010958,2]
[333424148,1722123076906,-500.0,0.00010958,2]
[333424149,1722123076915,-500.0,0.00010958,2]
[333424150,1722123076925,-500.0,0.00010958,2]
[333424151,1722123076934,-500.0,0.00010958,2]
[333424152,1722123076944,-500.0,0.00010958,2]
[333424153,1722123076953,-320.75,0.00010958,2]
[333424154,1722123076962,-298.88,0.00010958,2]
[333424155,1722123076971,-500.0,0.00010958,2]
[333424156,1722123076981,-500.0,0.00010958,2]
[333424157,1722123076990,-500.0,0.00010958,2]
[333424158,1722123076999,-281.4,0.00010958,2]
[333424159,1722123077009,-500.0,0.00010958,2]
[333424160,1722123077018,-500.0,0.00010958,2]
[333424161,1722123077027,-500.0,0.00010958,2]
[333424162,1722123077039,-500.44378997,0.00010958,2]
[333424163,1722123077049,-500.0,0.00010958,2]
[333424164,1722123077058,-500.0,0.00010958,2]
[333424165,1722123077069,-500.0,0.00010958,2]
[333424166,1722123077079,-500.0,0.00010958,2]
[333424167,1722123077088,-500.0,0.00010958,2]
[333424168,1722123077098,-496.27231348,0.00010958,2]
[333424169,1722123077107,-500.0,0.00010958,2]
[333424170,1722123077116,-325.67,0.00010958,2]
[333424171,1722123077126,-422.28,0.00010958,2]
[333424172,1722123077135,-301.28,0.00010958,2]
[333424173,1722123077145,-500.0,0.00010958,2]
[333424174,1722123077154,-500.0,0.00010958,2]
[333424175,1722123077164,-500.0,0.00010958,2]
[333424176,1722123077173,-500.0,0.00010958,2]
[333424177,1722123077182,-500.0,0.00010958,2]
[333424178,1722123077191,-500.0,0.00010958,2]
[333424179,1722123077201,-500.0,0.00010958,2]
[333424180,1722123077210,-500.0,0.00010958,2]
[333424181,1722123077219,-500.0,0.00010958,2]
[333424182,1722123077228,-500.0,0.00010958,2]
[333424183,1722123077238,-500.0,0.00010958,2]
[333424184,1722123077247,-500.0,0.00010958,2]
[333424185,1722123077256,-445.5,0.00010958,2]
[333424186,1722123077266,-500.0,0.00010958,2]
[333424187,1722123077275,-500.0,0.00010958,2]
[333424188,1722123077284,-500.0,0.00010958,2]
[333424189,1722123077293,-500.0,0.00010958,2]
[333424190,1722123077303,-500.0,0.00010958,2]
[333424191,1722123077312,-500.0,0.00010958,2]
[333424192,1722123077321,-315.63,0.00010958,2]
[333424193,1722123077330,-382.49,0.00010958,2]
[333424194,1722123077340,-500.0,0.00010958,2]
[333424195,1722123077349,-500.0,0.00010958,2]
[333424196,1722123077358,-270.28,0.00010958,2]
[333424197,1722123077367,-500.0,0.00010958,2]
[333424198,1722123077377,-500.0,0.00010958,2]
[333424199,1722123077386,-500.0,0.00010958,2]
[333424200,1722123077396,-500.0,0.00010958,2]
[333424201,1722123077408,-516.37,0.00010958,2]
[333424202,1722123077418,-500.0,0.00010958,2]
[333424203,1722123077427,-500.0,0.00010958,2]
[333424204,1722123077438,-254.39,0.00010958,2]
[333424205,1722123077448,-500.0,0.00010958,2]
[333424206,1722123077458,-500.0,0.00010958,2]
[333424207,1722123077467,-154.04,0.00010958,2]
[333424208,1722123077478,-500.0,0.00010958,2]
[333424209,1722123077486,-161.63,0.00010958,2]
[333424210,1722123077496,-500.0,0.00010958,2]
[333424211,1722123077506,-500.0,0.00010958,2]
[333424212,1722123077515,-500.0,0.00010958,2]
[333424213,1722123077524,-500.0,0.00010958,2]
[333424214,1722123077534,-363.24,0.00010958,2]
[333424215,1722123077543,-500.0,0.00010958,2]
[333424216,1722123077552,-191.09,0.00010958,2]
[333424217,1722123077561,-500.0,0.00010958,2]
[333424218,1722123077570,-500.0,0.00010958,2]
[333424219,1722123077579,-500.0,0.00010958,2]
[333424220,1722123077588,-500.0,0.00010958,2]
[333424221,1722123077597,-411.46,0.00010958,2]
[333424222,1722123077607,-378.49,0.00010958,2]
[333424223,1722123077616,-500.0,0.00010958,2]
[333424224,1722123077626,-500.0,0.00010958,2]
[333424225,1722123077635,-637.83075781,0.00010958,2]
[333424226,1722123077644,-500.0,0.00010958,2]
[333424227,1722123077653,-500.0,0.00010958,2]
[333424228,1722123077663,-291.0,0.00010958,2]
[333424229,1722123077672,-500.0,0.00010958,2]
[333424230,1722123077681,-500.0,0.00010958,2]
[333424231,1722123077690,-405.23887628,0.00010958,2]
[333424232,1722123077699,-500.0,0.00010958,2]
[333424233,1722123077708,-500.0,0.00010958,2]
[333424234,1722123077718,-238.95,0.00010958,2]
[333424235,1722123077728,-500.0,0.00010958,2]
[333424236,1722123077737,-500.0,0.00010958,2]
[333424237,1722123077747,-500.0,0.00010958,2]
[333424238,1722123077756,-500.0,0.00010958,2]
[333424239,1722123077765,-500.0,0.00010958,2]
[333424240,1722123077774,-500.0,0.00010958,2]
[333424241,1722123077783,-467.68,0.00010958,2]
[333424242,1722123077792,-492.97927269,0.00010958,2]
[333424243,1722123077802,-500.0,0.00010958,2]
[333424244,1722123077811,-151.0,0.00010958,2]
[333424245,1722123077820,-500.0,0.00010958,2]
[333424246,1722123077830,-500.0,0.00010958,2]
[333424247,1722123077840,-503.19717988,0.00010958,2]
[333424248,1722123077849,-500.0,0.00010958,2]
[333424249,1722123077858,-500.0,0.00010958,2]
[333424250,1722123077868,-500.0,0.00010958,2]
[333424251,1722123077877,-279.57,0.00010958,2]
[333424252,1722123077886,-494.36,0.00010958,2]
[333424253,1722123077895,-500.0,0.00010958,2]
[333424254,1722123077905,-500.0,0.00010958,2]
[333424255,1722123077914,-456.83,0.00010958,2]
[333424256,1722123077923,-500.0,0.00010958,2]
[333424257,1722123077933,-500.0,0.00010958,2]
[333424258,1722123077942,-500.0,0.00010958,2]
[333424259,1722123077951,-437.38,0.00010958,2]
[333424260,1722123077960,-500.0,0.00010958,2]
[333424261,1722123077970,-324.45,0.00010958,2]
[333424262,1722123077979,-168.484758,0.00010958,2]
[333424263,1722123077988,-500.0,0.00010958,2]
[333424264,1722123077997,-357.71,0.00010958,2]
[333424265,1722123078006,-500.0,0.00010958,2]
[333424266,1722123078015,-500.0,0.00010958,2]
[333424267,1722123078024,-500.0,0.00010958,2]
[333424268,1722123078033,-605.41,0.00010958,2]
[333424269,1722123078043,-449.96,0.00010958,2]
[333424270,1722123078052,-503.09154086,0.00010958,2]
[333424271,1722123078062,-500.0,0.00010958,2]
[333424272,1722123078071,-324.19,0.00010958,2]
[333424273,1722123078081,-500.0,0.00010958,2]
[333424274,1722123078090,-502.54115275,0.00010958,2]
[333424275,1722123078099,-500.0,0.00010958,2]
[333424276,1722123078109,-377.06,0.00010958,2]
[333424277,1722123078118,-500.0,0.00010958,2]
[333424278,1722123078127,-500.0,0.00010958,2]
[333424279,1722123078137,-500.0,0.00010958,2]
[333424280,1722123078147,-286.95,0.00010958,2]
[333424281,1722123078156,-500.0,0.00010958,2]
[333424282,1722123078166,-219.83,0.00010958,2]
[333424283,1722123078175,-500.0,0.00010958,2]
[333424284,1722123078185,-500.0,0.00010958,2]
[333424285,1722123078195,-329.62314506,0.00010958,2]
[333424286,1722123078204,-297.160831,0.00010958,2]
[333424287,1722123078213,-500.0,0.00010958,2]
[333424288,1722123078223,-500.0,0.00010958,2]
[333424289,1722123078232,-500.0,0.00010958,2]
[333424290,1722123078242,-500.0,0.00010958,2]
[333424291,1722123078251,-218.7,0.00010958,2]
[333424292,1722123078261,-500.0,0.00010958,2]
[333424293,1722123078271,-500.0,0.00010958,2]
[333424294,1722123078280,-500.0,0.00010958,2]
[333424295,1722123078290,-498.25,0.00010958,2]
[333424296,1722123078300,-584.15,0.00010958,2]
[333424297,1722123078309,-500.0,0.00010958,2]
[333424298,1722123078319,-286.89,0.00010958,2]
[333424299,1722123078328,-500.0,0.00010958,2]
[333424300,1722123078338,-500.0,0.00010958,2]
[333424301,1722123078348,-500.0,0.00010958,2]
[333424302,1722123078358,-500.0,0.00010958,2]
[333424303,1722123078367,-264.94,0.00010958,2]
[333424304,1722123078377,-500.0,0.00010958,2]
[333424305,1722123078386,-500.0,0.00010958,2]
[333424306,1722123078396,-500.0,0.00010958,2]
[333424307,1722123078408,-540.13,0.00010958,2]
[333424308,1722123078418,-500.0,0.00010958,2]
[333424309,1722123078427,-214.51,0.00010958,2]
[333424310,1722123078437,-320.808345,0.00010958,2]
[333424311,1722123078447,-500.0,0.00010958,2]
[333424312,1722123078456,-194.84,0.00010958,2]
[333424313,1722123078466,-500.0,0.00010958,2]
[333424314,1722123078475,-500.0,0.00010958,2]
[333424315,1722123078487,-151.0,0.00010958,2]
[333424316,1722123078496,-151.0,0.00010958,2]
[333424317,1722123078505,-500.0,0.00010958,2]
[333424318,1722123078515,-500.0,0.00010958,2]
[333424319,1722123078524,-500.0,0.00010958,2]
[333424320,1722123078534,-500.0,0.00010958,2]
[333424321,1722123078543,-241.79920505,0.00010958,2]
[333424322,1722123078552,-164.9582466,0.00010958,2]
[333424323,1722123078562,-151.0,0.00010958,2]
[333424324,1722123078571,-500.0,0.00010958,2]
[333424325,1722123078581,-500.0,0.00010958,2]
[333424326,1722123078590,-500.0,0.00010958,2]
[333424327,1722123078600,-500.0,0.00010958,2]
[333424328,1722123078609,-500.0,0.00010958,2]
[333424329,1722123078618,-500.0,0.00010958,2]
[333424330,1722123078628,-151.0,0.00010958,2]
[333424331,1722123078637,-500.0,0.00010958,2]
[333424332,1722123078646,-500.0,0.00010958,2]
[333424333,1722123078656,-245.5,0.00010958,2]
[333424334,1722123078665,-500.0,0.00010958,2]
[333424335,1722123078674,-500.0,0.00010958,2]
[333424336,1722123078684,-513.88,0.00010958,2]
[333424337,1722123078693,-500.0,0.00010958,2]
[333424338,1722123078702,-500.0,0.00010958,2]
[333424339,1722123078823,-500.0,0.00010958,2]
[333424340,1722123078834,-500.0,0.00010958,2]
[333424341,1722123078843,-494.62,0.00010958,2]
[333424342,1722123078853,-500.0,0.00010958,2]
[333424343,1722123078862,-500.0,0.00010958,2]
[333424344,1722123078871,-500.0,0.00010958,2]
[333424345,1722123078880,-500.0,0.00010958,2]
[333424346,1722123078890,-500.0,0.00010958,2]
[333424347,1722123078899,-500.0,0.00010958,2]
[333424348,1722123078909,-500.0,0.00010958,2]
[333424349,1722123078918,-500.0,0.00010958,2]
[333424350,1722123078928,-500.0,0.00010958,2]
[333424351,1722123078937,-500.0,0.00010958,2]
[333424352,1722123078947,-500.0,0.00010958,2]
[333424353,1722123078957,-500.0,0.00010958,2]
[333424354,1722123078966,-500.0,0.00010958,2]
[333424355,1722123078975,-500.0,0.00010958,2]
[333424356,1722123078985,-500.0,0.00010958,2]
[333424357,1722123079002,-500.0,0.00010958,2]
[333424358,1722123079012,-500.0,0.00010958,2]
[333424359,1722123079021,-500.0,0.00010958,2]
[333424360,1722123079030,-151.0,0.00010958,2]
[333424361,1722123079041,-500.0,0.00010958,2]
[333424362,1722123079051,-500.0,0.00010958,2]
[333424363,1722123079061,-500.0,0.00010958,2]
[333424364,1722123079071,-500.0,0.00010958,2]
[333424365,1722123079080,-227.51243921,0.00010958,2]
[333424366,1722123079090,-500.0,0.00010958,2]
[333424367,1722123079100,-500.0,0.00010958,2]
[333424368,1722123079109,-500.0,0.00010958,2]
[333424369,1722123079119,-500.0,0.00010958,2]
[333424370,1722123079129,-500.0,0.00010958,2]
[333424371,1722123079138,-500.0,0.00010958,2]
[333424372,1722123079147,-500.0,0.00010958,2]
[333424373,1722123079157,-530.59,0.00010958,2]
[333424374,1722123079166,-500.0,0.00010958,2]
[333424375,1722123079176,-285.99,0.00010958,2]
[333424376,1722123079185,-500.0,0.00010958,2]
[333424377,1722123079195,-420.61,0.00010958,2]
[333424378,1722123079204,-151.0,0.00010958,2]
[333424379,1722123079214,-500.0,0.00010958,2]
[333424380,1722123079223,-500.0,0.00010958,2]
[333424381,1722123079233,-500.0,0.00010958,2]
[333424382,1722123079242,-500.0,0.00010958,2]
[333424383,1722123079252,-500.0,0.00010958,2]
[333424384,1722123079261,-500.0,0.00010958,2]
[333424385,1722123079271,-168.714165,0.00010958,2]
[333424386,1722123079281,-500.0,0.00010958,2]
[333424387,1722123079291,-402.88,0.00010958,2]
[333424388,1722123079300,-500.0,0.00010958,2]
[333424389,1722123079310,-425.5,0.00010958,2]
[333424390,1722123079319,-151.0,0.00010958,2]
[333424391,1722123079329,-151.131217,0.00010958,2]
[333424392,1722123079338,-211.68,0.00010958,2]
[333424393,1722123079347,-151.0,0.00010958,2]
[333424394,1722123079356,-151.0,0.00010958,2]
[333424395,1722123079366,-500.0,0.00010958,2]
[333424396,1722123079375,-500.0,0.00010958,2]
[333424397,1722123079384,-374.82,0.00010958,2]
[333424398,1722123079394,-508.71,0.00010958,2]
[333424399,1722123079408,-500.0,0.00010958,2]
[333424400,1722123079417,-500.0,0.00010958,2]
[333424401,1722123079427,-289.66,0.00010958,2]
[333424402,1722123079436,-500.0,0.00010958,2]
[333424403,1722123079446,-500.0,0.00010958,2]
[333424404,1722123079456,-500.0,0.00010958,2]
[333424405,1722123079465,-500.0,0.00010958,2]
[333424406,1722123079476,-500.0,0.00010958,2]
[333424407,1722123079485,-250.8,0.00010958,2]
[333424408,1722123079494,-315.96,0.00010958,2]
[333424409,1722123079504,-445.43,0.00010958,2]
[333424410,1722123079514,-393.35,0.00010958,2]
[333424411,1722123079523,-614.36,0.00010958,2]
[333424412,1722123079533,-500.0,0.00010958,2]
[333424413,1722123079542,-165.57625182,0.00010958,2]
[333424414,1722123079552,-279.52,0.00010958,2]
[333424415,1722123079561,-3443.63,0.00010958,2]
[333424416,1722123079570,-221.69,0.00010958,2]
[333424417,1722123079579,-151.0,0.00010958,2]
[333424418,1722123079589,-151.0,0.00010958,2]
[333424419,1722123079598,-602.64,0.00010958,2]
[333424420,1722123079608,-151.0,0.00010958,2]
[333424421,1722123079617,-309.37,0.00010958,2]
[333424422,1722123079626,-500.0,0.00010959,2]
[333424423,1722123079636,-684.818572,0.00010959,2]
[333424424,1722123079646,-684.818572,0.00010959,2]
[333424425,1722123079655,-684.818572,0.00010959,2]
[333424426,1722123079665,-684.818572,0.00010959,2]
[333424427,1722123079674,-1083.12,0.00010959,5]
[333424428,1722123079683,-150.0,0.00010959,2]
[333424429,1722123079692,-341.95,0.00010959,2]
[333424430,1722123079702,-250.0,0.00010959,2]
[333424431,1722123079711,-500.0,0.00010995,2]
[333424432,1722123079721,-500.0,0.00010995,2]
[333424433,1722123079730,-500.0,0.00010995,2]
[333424434,1722123079739,-1196.32,0.00010995,2]
[333424435,1722123079748,-500.0,0.00010995,2]
[333424436,1722123079757,-549.38,0.00010995,2]
[333424437,1722123079767,-500.0,0.00010995,2]
[333424438,1722123079776,-500.0,0.00010995,2]
[333424439,1722123079786,-500.0,0.00010995,2]
[333424440,1722123079797,-500.0,0.00010995,2]
[333424441,1722123079807,-500.0,0.00010995,2]
[333424442,1722123079816,-500.0,0.00010995,2]
[333424443,1722123079829,-500.0,0.00010995,2]
[333424444,1722123079838,-500.0,0.00010995,2]
[333424445,1722123079848,-500.0,0.00010995,2]
[333424446,1722123079857,-500.0,0.00010995,2]
[333424447,1722123079866,-500.0,0.00010995,2]
[333424448,1722123079876,-500.0,0.00010995,2]
[333424449,1722123079886,-500.0,0.00010995,2]
[333424450,1722123079895,-500.0,0.00010995,2]
[333424451,1722123079905,-500.0,0.00010995,2]
[333424452,1722123079915,-500.0,0.00010995,2]
[333424453,1722123079925,-500.0,0.00010995,2]
[333424454,1722123079934,-500.0,0.00010995,2]
[333424455,1722123079944,-500.0,0.00010995,2]
[333424456,1722123079954,-500.0,0.00010995,2]
[333424457,1722123079963,-500.0,0.00010995,2]
[333424458,1722123079974,-500.0,0.00010995,2]
[333424459,1722123079984,-966.82,0.00010995,2]
[333424460,1722123079994,-500.0,0.00010995,2]
[333424461,1722123080003,-500.0,0.00010995,2]
[333424462,1722123080013,-500.0,0.00010995,2]
[333424463,1722123080022,-1477.43,0.00010995,2]
[333424464,1722123080032,-500.0,0.00010995,2]
[333424465,1722123080042,-500.0,0.00010995,2]
[333424466,1722123080052,-500.0,0.00010995,2]
[333424467,1722123080062,-500.0,0.00010995,2]
[333424468,1722123080071,-500.0,0.00010995,2]
[333424469,1722123080081,-500.0,0.00010995,2]
[333424470,1722123080090,-500.0,0.00010995,2]
[333424471,1722123080099,-321.27099573,0.00010995,2]
[333424472,1722123080109,-2341.36,0.00010995,2]
[333424473,1722123080122,-906.57,0.00010995,2]
[333424474,1722123080131,-500.0,0.00010995,2]
[333424475,1722123080140,-500.0,0.00010995,2]
[333424476,1722123080150,-2672.23,0.00010995,2]
[333424477,1722123080159,-500.0,0.00010995,2]
[333424478,1722123080169,-500.0,0.00010995,2]
[333424479,1722123080179,-500.0,0.00010995,2]
[333424480,1722123080188,-500.0,0.00010995,2]
[333424481,1722123080197,-1009.71,0.00010995,2]
[333424482,1722123080207,-550.0,0.00010996,2]
[333424483,1722123080217,-2380.0,0.00010996,2]
[333424484,1722123080226,-150.0,0.00010996,2]
[333424485,1722123080236,-1469.785,0.00010996,2]
[333424486,1722123080245,-150.0,0.00010996,2]
[333424487,1722123080254,-2163.634,0.00010996,2]
[333424488,1722123080264,-1301.0,0.00010996,2]
[333424489,1722123080274,-1073.0,0.00010996,2]
[333424490,1722123080283,-5831.0,0.00010996,2]
[333424491,1722123080292,-1663.0,0.00010996,2]
[333424492,1722123080302,-1254.0,0.00010996,2]
[333424493,1722123080312,-5123.0,0.00010996,2]
[333424494,1722123080321,-362.0,0.00010996,2]
[333424495,1722123080330,-1819.0,0.00010996,2]
[333424496,1722123080339,-38376.0,0.00010996,2]
[333424497,1722123080348,-1669.0,0.00010996,2]
[333424498,1722123080358,-328.14,0.00010996,2]
[333424499,1722123080367,-312.6,0.00010996,2]
[333424500,1722123080377,-500.0,0.00010996,2]
[333424501,1722123080386,-500.0,0.00010996,2]
[333424502,1722123080395,-500.0,0.00010996,2]
[333424503,1722123080408,-500.0,0.00010996,2]
[333424504,1722123080417,-500.0,0.00010996,2]
[333424505,1722123080427,-500.0,0.00010996,2]
[333424506,1722123080436,-500.0,0.00010996,2]
[333424507,1722123080446,-500.0,0.00010996,2]
[333424508,1722123080456,-500.0,0.00010996,2]
[333424509,1722123080465,-500.0,0.00010996,2]
[333424510,1722123080475,-178.97,0.00010996,2]
[333424511,1722123080485,-500.0,0.00010996,2]
[333424512,1722123080494,-500.0,0.00010996,2]
[333424513,1722123080503,-500.0,0.00010996,2]
[333424514,1722123080513,-542.2,0.00010996,2]
[333424515,1722123080522,-500.0,0.00010996,2]
[333424516,1722123080637,-500.0,0.00010996,2]
[333424517,1722123080647,-500.0,0.00010996,2]
[333424518,1722123080656,-500.0,0.00010996,2]
[333424519,1722123080664,-500.0,0.00010996,2]
[333424520,1722123080674,-500.0,0.00010996,2]
[333424521,1722123080683,-500.0,0.00010996,2]
[333424522,1722123080692,-500.0,0.00010996,2]
[333424523,1722123080701,-500.0,0.00010996,2]
[333424524,1722123080710,-500.0,0.00010996,2]
[333424525,1722123080720,-500.0,0.00010996,2]
[333424526,1722123080728,-500.0,0.00010996,2]
[333424527,1722123080738,-500.0,0.00010996,2]
[333424528,1722123080747,-500.0,0.00010996,2]
[333424529,1722123080756,-500.0,0.00010996,2]
[333424530,1722123080765,-500.0,0.00010996,2]
[333424531,1722123080774,-500.0,0.00010996,2]
[333424532,1722123080784,-500.0,0.00010996,2]
[333424533,1722123080794,-160.62,0.00010996,2]
[333424534,1722123080803,-500.0,0.00010996,2]
[333424535,1722123080813,-299.31,0.00010996,2]
[333424536,1722123080823,-419.1,0.00010996,2]
[333424537,1722123080833,-151.0,0.00010996,2]
[333424538,1722123080842,-237.185136,0.00010996,2]
[333424539,1722123080852,-167.391276,0.00010996,2]
[333424540,1722123080861,-271.15,0.00010997,2]
[333424541,1722123080871,-500.0,0.00010997,2]
[333424542,1722123080881,-500.0,0.00010997,2]
[333424543,1722123080891,-500.0,0.00010997,2]
[333424544,1722123080900,-500.0,0.00010997,2]
[333424545,1722123080911,-500.0,0.00010997,2]
[333424546,1722123080920,-500.0,0.00010997,2]
[333424547,1722123080930,-500.0,0.00010997,2]
[333424548,1722123080939,-500.0,0.00010997,2]
[333424549,1722123080949,-500.0,0.00010997,2]
[333424550,1722123080958,-283.75,0.00010997,2]
[333424551,1722123080967,-470.87,0.00010997,2]
[333424552,1722123080977,-500.0,0.00010997,2]
[333424553,1722123080986,-500.0,0.00010997,2]
[333424554,1722123080996,-500.0,0.00010997,2]
[333424555,1722123081006,-500.0,0.00010997,2]
[333424556,1722123081015,-500.0,0.00010997,2]
[333424557,1722123081025,-500.0,0.00010997,2]
[333424558,1722123081034,-500.0,0.00010997,2]
[333424559,1722123081044,-500.0,0.00010997,2]
[333424560,1722123081054,-500.0,0.00010997,2]
[333424561,1722123081064,-500.0,0.00010997,2]
[333424562,1722123081073,-500.0,0.00010997,2]
[333424563,1722123081083,-369.05,0.00010997,2]
[333424564,1722123081092,-276.33,0.00010997,2]
[333424565,1722123081101,-544.07,0.00010997,2]
[333424566,1722123081111,-394.28,0.00010997,2]
[333424567,1722123081121,-500.0,0.00010997,2]
[333424568,1722123081130,-261.47,0.00010997,2]
[333424569,1722123081140,-500.0,0.00010997,2]
[333424570,1722123081150,-500.0,0.00010997,2]
[333424571,1722123081159,-500.0,0.00010997,2]
[333424572,1722123081169,-500.0,0.00010997,2]
[333424573,1722123081179,-219.57,0.00010997,2]
[333424574,1722123081188,-606.15,0.00010997,2]
[333424575,1722123081198,-500.0,0.00010997,2]
[333424576,1722123081208,-500.0,0.00010997,2]
[333424577,1722123081217,-500.0,0.00010997,2]
[333424578,1722123081227,-496.54047875,0.00010997,2]
[333424579,1722123081237,-500.0,0.00010997,2]
[333424580,1722123081247,-500.0,0.00010997,2]
[333424581,1722123081257,-500.0,0.00010997,2]
[333424582,1722123081267,-500.0,0.00010997,2]
[333424583,1722123081276,-500.0,0.00010997,2]
[333424584,1722123081285,-507.14,0.00010997,2]
[333424585,1722123081295,-500.0,0.00010997,2]
[333424586,1722123081305,-196.93,0.00010997,2]
[333424587,1722123081314,-500.0,0.00010997,2]
[333424588,1722123081324,-1495.4,0.00010997,2]
[333424589,1722123081333,-417.52,0.00010997,2]
[333424590,1722123081343,-238.41,0.00010997,2]
[333424591,1722123081353,-500.0,0.00010997,2]
[333424592,1722123081363,-500.0,0.00010997,2]
[333424593,1722123081373,-500.0,0.00010997,2]
[333424594,1722123081383,-500.0,0.00010997,2]
[333424595,1722123081392,-431.61,0.00010997,2]
[333424596,1722123081405,-500.0,0.00010997,2]
[333424597,1722123081415,-568.81,0.00010997,2]
[333424598,1722123081425,-867.8,0.00010997,2]
[333424599,1722123081441,-527.93,0.00010997,2]
[333424600,1722123081465,-500.0,0.00010997,2]
[333424601,1722123081484,-500.0,0.00010997,2]
[333424602,1722123081502,-1009.39,0.00010997,2]
[333424603,1722123081523,-840.37,0.00010997,2]
[333424604,1722123081541,-500.0,0.00010997,2]
[333424605,1722123081559,-500.0,0.00010997,2]
[333424606,1722123081575,-520.11,0.00010997,2]
[333424607,1722123081590,-500.0,0.00010997,2]
[333424608,1722123081608,-500.0,0.00010997,2]
[333424609,1722123081630,-1054.91,0.00010997,2]
[333424610,1722123081643,-1537.87,0.00010997,2]
[333424611,1722123081660,-500.0,0.00010997,2]
[333424612,1722123081676,-500.0,0.00010997,2]
[333424613,1722123081694,-500.0,0.00010997,2]
[333424614,1722123081710,-500.0,0.00010997,2]
[333424615,1722123081725,-500.0,0.00010997,2]
[333424616,1722123081741,-4486.2,0.00010997,2]
[333424617,1722123081757,-388.29430113,0.00010997,2]
[333424618,1722123081773,-500.0,0.00010997,2]
[333424619,1722123081791,-500.0,0.00010997,2]
[333424620,1722123081809,-500.0,0.00010997,2]
[333424621,1722123081827,-500.0,0.00010997,2]
[333424622,1722123081845,-500.0,0.00010997,2]
[333424623,1722123081861,-762.97,0.00010997,2]
[333424624,1722123081877,-500.0,0.00010997,2]
[333424625,1722123081894,-503.04,0.00010998,2]
[333424626,1722123081910,-293.02,0.00010998,2]
[333424627,1722123081925,-270.68,0.00010998,2]
[333424628,1722123081941,-500.0,0.00010998,2]
[333424629,1722123081956,-500.0,0.00010998,2]